bitfinex/quotes_SOLUSD_20241218
["timestamp","ask_amount","ask_price","bid_price","bid_amount"]
[1734525625600,52.53920974,216.51,216.44,0.12549]
[1734525625788,22.53920974,216.51,216.44,0.12549]
[1734525626179,22.53920974,216.53,216.45,22.53920974]
[1734525626397,30.0,216.51,216.45,22.53920974]
[1734525626596,30.0,216.51,216.4,0.81836965]
[1734525626804,22.53920974,216.49,216.41,22.53920974]
[1734525627000,30.0,216.47,216.41,22.53920974]
[1734525628303,52.53920974,216.47,216.39,22.66469974]
[1734525629201,30.0,216.47,216.39,22.66469974]
[1734525629396,22.53920974,216.49,216.42,0.12549]
[1734525629584,30.0,216.51,216.4,23.776884]
[1734525629585,22.53920974,216.5,216.43,22.53920974]
[1734525630588,30.0,216.47,216.41,22.53920974]
[1734525633509,30.0,216.47,216.41,22.53920974]
[1734525634595,52.53920974,216.5,216.42,22.66469974]
[1734525634791,22.53920974,216.52,216.45,0.12549]
[1734525634998,30.0,216.53,216.46,22.53920974]
[1734525634999,52.53920974,216.53,216.46,22.53920974]
[1734525635200,30.0,216.56,216.48,22.53920974]
[1734525635397,30.0,216.56,216.49,22.53920974]
[1734525636518,30.0,216.56,216.51,22.53920974]
[1734525637296,52.53920974,216.59,216.51,22.53920974]
[1734525637802,22.53920974,216.58,216.51,22.53920974]
[1734525638122,57.74,216.59,216.52,0.12549]
[1734525638291,30.0,216.59,216.52,21.58670326]
[1734525638785,52.53920974,216.59,216.52,21.58670326]
[1734525639005,22.53920974,216.6,216.52,21.58670326]
[1734525639207,22.53920974,216.6,216.53,22.53920974]
[1734525639412,22.53920974,216.6,216.52,22.53920974]
[1734525640099,44.07334704,216.59,216.52,14.07334704]
[1734525640298,14.07334704,216.58,216.51,14.07334704]
[1734525640602,14.07334704,216.58,216.5,14.07334704]
[1734525641221,14.07334704,216.57,216.5,14.07334704]
[1734525641398,14.07334704,216.57,216.49,21.51604704]
[1734525641593,14.07334704,216.54,216.49,7.4427]
[1734525641806,30.0,216.53,216.48,1.5913]
[1734525642005,44.07334704,216.53,216.48,1.5913]
[1734525647123,30.0,216.53,216.48,1.5913]
[1734525647303,14.07334704,216.56,216.49,14.07334704]
[1734525651098,14.07334704,216.54,216.48,1.5913]
[1734525652722,30.0,216.5,216.44,7.28389975]
[1734525652923,14.07334704,216.47,216.41,1.5067]
[1734525653231,14.07334704,216.45,216.41,1.5067]
[1734525654927,14.07334704,216.46,216.41,1.5067]
[1734525657028,30.0,216.47,216.41,1.5067]
[1734525657327,14.07334704,216.45,216.41,1.5067]
[1734525665231,14.07334704,216.43,216.38,6.2098]
[1734525665531,14.07334704,216.41,216.36,1.6189]
[1734525666031,14.07334704,216.38,216.36,1.6189]
[1734525666207,14.07334704,216.38,216.33,7.2013]
[1734525666810,14.07334704,216.36,216.33,7.2013]
[1734525667235,14.07334704,216.38,216.33,7.2013]
[1734525667438,14.07334704,216.37,216.33,7.2013]
[1734525667936,14.07334704,216.36,216.33,7.2013]
[1734525668848,14.07334704,216.34,216.27,7.4212]
[1734525669145,14.07334704,216.29,216.26,1.6159]
[1734525670113,14.07334704,216.29,216.22,6.4681]
[1734525670316,14.07334704,216.27,216.22,6.4681]
[1734525671517,14.07334704,216.26,216.22,6.4681]
[1734525672148,14.07334704,216.27,216.22,6.4681]
[1734525673030,14.07334704,216.3,216.23,0.12549]
[1734525673350,44.07334704,216.34,216.27,14.07334704]
[1734525673645,10.1878385,216.47,216.3,0.12549]
[1734525673646,14.07334704,216.37,216.3,0.12549]
[1734525674118,14.07334704,216.37,216.3,14.19883704]
[1734525674317,44.07334704,216.38,216.32,0.12549]
[1734525674544,30.0,216.38,216.32,15.81333704]
[1734525674734,14.07334704,216.37,216.32,1.6145]
[1734525675050,14.07334704,216.36,216.32,1.6145]
[1734525675225,14.07334704,216.35,216.32,1.6145]
[1734525675619,14.07334704,216.33,216.28,0.8]
[1734525675841,14.07334704,216.31,216.27,1.5761]
[1734525676046,14.07334704,216.3,216.27,1.5761]
[1734525676248,14.07334704,216.29,216.24,0.8]
[1734525676764,14.07334704,216.27,216.22,8.0442]
[1734525676929,14.07334704,216.26,216.22,8.0442]
[1734525677459,14.07334704,216.23,216.16,7.6951]
[1734525677646,14.07334704,216.21,216.16,7.6951]
[1734525677848,14.07334704,216.2,216.16,7.6951]
[1734525680549,14.07334704,216.22,216.16,7.6951]
[1734525680954,14.07334704,216.24,216.17,0.12549]
[1734525681128,14.07334704,216.25,216.18,14.07334704]
[1734525681328,14.07334704,216.24,216.17,14.19883704]
[1734525681537,14.07334704,216.25,216.17,14.19883704]
[1734525681729,14.07334704,216.26,216.19,14.07334704]
[1734525682863,14.07334704,216.25,216.18,14.07334704]
[1734525683146,14.07334704,216.24,216.17,0.12549]
[1734525683349,14.07334704,216.22,216.16,7.6951]
[1734525684447,44.07334704,216.23,216.16,7.6951]
[1734525685150,14.07334704,216.22,216.16,7.6951]
[1734525690653,14.07334704,216.2,216.13,0.8]
[1734525690839,14.07334704,216.18,216.11,8.6693]
[1734525691159,14.07334704,216.16,216.11,7.8693]
[1734525692753,14.07334704,216.12,216.1,29.5000594]
[1734525694238,14.07334704,216.13,216.1,29.5000594]
[1734525694435,14.07334704,216.16,216.1,29.5000594]
[1734525694836,30.0,216.19,216.12,14.19883704]
[1734525695057,30.0,216.19,216.12,14.07334704]
[1734525695559,30.0,216.19,216.13,14.07334704]
[1734525695770,44.07334704,216.19,216.12,14.07334704]
[1734525696571,30.0,216.19,216.12,14.07334704]
[1734525696779,14.07334704,216.21,216.13,14.07334704]
[1734525697250,14.07334704,216.19,216.12,14.07334704]
[1734525697452,44.07334704,216.2,216.12,14.07334704]
[1734525699560,44.07334704,216.2,216.13,14.19883704]
[1734525699748,14.07334704,216.21,216.13,14.07334704]
[1734525700067,14.07334704,216.2,216.13,14.07334704]
[1734525700443,14.07334704,216.2,216.12,14.19883704]
[1734525701360,14.07334704,216.2,216.13,14.07334704]
[1734525701565,44.07334704,216.23,216.15,14.07334704]
[1734525701951,44.07334704,216.26,216.18,14.07334704]
[1734525702151,44.07334704,216.26,216.16,23.902374]
[1734525702359,44.07334704,216.26,216.19,14.07334704]
[1734525702835,44.07334704,216.26,216.18,14.07334704]
[1734525703341,30.0,216.33,216.24,14.07334704]
[1734525703545,14.07334704,216.32,216.24,14.07334704]
[1734525703896,14.07334704,216.3,216.23,14.07334704]
[1734525704040,30.0,216.29,216.22,14.07334704]
[1734525704972,44.07334704,216.29,216.22,14.07334704]
[1734525705151,30.0,216.29,216.21,1.6544]
[1734525705474,14.07334704,216.25,216.21,1.6544]
[1734525705862,14.07334704,216.25,216.18,0.12549]
[1734525706369,44.07334704,216.26,216.18,14.07334704]
[1734525706799,14.07334704,216.25,216.18,14.07334704]
[1734525707008,14.07334704,216.24,216.17,14.07334704]
[1734525707502,44.07334704,216.22,216.16,1.5308]
[1734525707659,44.07334704,216.25,216.17,14.07334704]
[1734525707848,14.07334704,216.24,216.17,14.07334704]
[1734525709885,44.07334704,216.25,216.18,14.07334704]
[1734525710181,30.0,216.25,216.18,14.07334704]
[1734525710373,14.07334704,216.27,216.2,14.07334704]
[1734525710583,44.07334704,216.29,216.21,14.07334704]
[1734525710775,30.81320655,216.35,216.23,14.07334704]
[1734525710776,14.07334704,216.31,216.23,14.07334704]
[1734525711274,14.07334704,216.31,216.24,14.07334704]
[1734525711858,44.07334704,216.32,216.25,14.07334704]
[1734525712059,14.07334704,216.31,216.24,14.07334704]
[1734525712468,14.07334704,216.34,216.27,14.07334704]
[1734525712658,60.81320655,216.35,216.28,14.07334704]
[1734525712868,14.07334704,216.33,216.27,1.6327]
[1734525713081,14.07334704,216.31,216.27,1.6327]
[1734525713277,30.0,216.32,216.23,6.0554]
[1734525713468,44.07334704,216.29,216.23,6.0554]
[1734525713982,14.07334704,216.28,216.22,1.5589]
[1734525714355,44.07334704,216.29,216.22,1.5589]
[1734525714855,44.07334704,216.29,216.21,14.07334704]
[1734525714856,14.07334704,216.28,216.21,14.07334704]
[1734525715075,14.07334704,216.27,216.19,14.07334704]
[1734525715262,14.07334704,216.26,216.19,14.07334704]
[1734525715457,14.07334704,216.23,216.16,15.63224704]
[1734525715671,14.07334704,216.22,216.16,1.5589]
[1734525716287,14.07334704,216.23,216.16,1.5589]
[1734525716581,44.07334704,216.22,216.16,1.5589]
[1734525716983,14.07334704,216.24,216.17,14.07334704]
[1734525717176,14.07334704,216.27,216.19,14.07334704]
[1734525717369,30.0,216.28,216.2,14.07334704]
[1734525717370,44.07334704,216.28,216.2,14.07334704]
[1734525717987,14.07334704,216.27,216.19,14.07334704]
[1734525718193,14.07334704,216.27,216.2,14.07334704]
[1734525719193,44.07334704,216.28,216.21,14.07334704]
[1734525719354,30.0,216.31,216.24,14.07334704]
[1734525719560,30.0,216.31,216.25,14.07334704]
[1734525720061,30.0,216.31,216.24,14.07334704]
[1734525722204,44.07334704,216.34,216.27,14.07334704]
[1734525722497,44.07334704,216.37,216.3,14.07334704]
[1734525722876,30.0,216.37,216.3,14.07334704]
[1734525723063,44.07334704,216.37,216.3,14.07334704]
[1734525723263,30.0,216.37,216.3,14.07334704]
[1734525723462,30.0,216.37,216.32,14.07334704]
[1734525723757,30.0,216.4,216.35,14.07334704]
[1734525723963,30.0,216.4,216.36,14.07334704]
[1734525724473,44.07334704,216.45,216.38,14.07334704]
[1734525724675,30.0,216.45,216.39,14.07334704]
[1734525725011,30.0,216.48,216.42,14.07334704]
[1734525725210,30.0,216.48,216.43,14.07334704]
[1734525725380,14.07334704,216.5,216.43,14.07334704]
[1734525725986,22.53794085,216.5,216.43,22.53794085]
[1734525726615,22.53794085,216.49,216.42,22.53794085]
[1734525726911,22.53794085,216.5,216.43,22.53794085]
[1734525727070,52.53794085,216.51,216.44,22.53794085]
[1734525727912,22.53794085,216.52,216.45,22.53794085]
[1734525728413,52.53794085,216.57,216.5,22.53794085]
[1734525729112,22.53794085,216.51,216.44,24.17814085]
[1734525730281,22.53794085,216.55,216.48,22.53794085]
[1734525730615,30.0,216.56,216.5,22.53794085]
[1734525731083,30.0,216.6,216.52,22.53794085]
[1734525731276,30.0,216.6,216.53,22.53794085]
[1734525731599,22.53794085,216.62,216.54,22.53794085]
[1734525731774,30.0,216.63,216.57,22.53794085]
[1734525731968,22.53794085,216.65,216.58,22.53794085]
[1734525732199,52.53794085,216.66,216.59,22.53794085]
[1734525732995,30.0,216.66,216.6,22.53794085]
[1734525734918,30.76917621,216.67,216.61,22.53794085]
[1734525735216,30.0,216.69,216.63,22.53794085]
[1734525735434,52.53794085,216.72,216.65,22.53794085]
[1734525735785,52.53794085,216.75,216.68,22.53794085]
[1734525736018,30.0,216.75,216.69,22.53794085]
[1734525736319,23.10630025,216.76,216.63,6.6462]
[1734525736320,22.53794085,216.73,216.66,22.53794085]
[1734525736527,0.5683594,216.76,216.71,20.0]
[1734525736693,0.5683594,216.76,216.72,25.26876436]
[1734525736880,0.5683594,216.76,216.73,0.12549]
[1734525737082,0.5683594,216.76,216.75,22.66343085]
[1734525737278,22.53794085,216.91,216.75,47.24031485]
[1734525737515,52.53794085,216.92,216.85,22.53794085]
[1734525737899,30.0,216.89,216.84,22.53794085]
[1734525738123,30.0,216.89,216.82,22.53794085]
[1734525738293,52.53794085,216.89,216.81,22.53794085]
[1734525738487,52.53794085,216.89,216.78,20.0]
[1734525738488,52.53794085,216.89,216.82,22.53794085]
[1734525738687,52.53794085,216.92,216.84,22.53794085]
[1734525738885,30.0,216.92,216.87,22.53794085]
[1734525739109,30.0,216.89,216.82,22.53794085]
[1734525739430,30.0,216.89,216.8,1.613]
[1734525739431,22.53794085,216.88,216.8,1.613]
[1734525739589,30.0,216.85,216.75,23.776884]
[1734525739787,52.53794085,216.85,216.78,22.53794085]
[1734525740817,30.0,216.85,216.8,22.53794085]
[1734525740998,22.53794085,216.87,216.8,22.53794085]
[1734525741294,30.0,216.85,216.8,22.53794085]
[1734525741494,22.53794085,216.87,216.79,22.53794085]
[1734525741695,30.0,216.85,216.8,22.53794085]
[1734525741894,22.53794085,216.87,216.8,22.53794085]
[1734525742098,30.0,216.84,216.77,22.53794085]
[1734525742508,22.53794085,216.86,216.79,22.53794085]
[1734525742809,30.0,216.87,216.82,22.53794085]
[1734525743327,30.0,216.87,216.81,22.53794085]
[1734525743489,52.53794085,216.87,216.8,22.53794085]
[1734525744035,52.53794085,216.9,216.83,22.53794085]
[1734525744197,30.0,216.9,216.83,22.53794085]
[1734525744904,22.53794085,216.89,216.82,22.53794085]
[1734525745093,64.45334045,216.98,216.81,22.53794085]
[1734525745094,30.0,216.87,216.81,22.53794085]
[1734525745308,30.0,216.9,216.84,22.53794085]
[1734525745504,30.0,216.87,216.82,22.53794085]
[1734525745787,30.0,216.87,216.8,22.53794085]
[1734525745992,30.0,216.87,216.81,22.53794085]
[1734525746418,30.0,216.82,216.76,22.53794085]
[1734525746594,30.0,216.82,216.75,22.53794085]
[1734525747223,30.0,216.85,216.78,22.53794085]
[1734525747392,30.0,216.82,216.76,22.53794085]
[1734525747813,30.0,216.82,216.75,22.53794085]
[1734525748021,30.0,216.82,216.73,1.613]
[1734525748022,52.53794085,216.85,216.78,22.53794085]
[1734525748425,30.0,216.85,216.79,22.53794085]
[1734525748644,30.0,216.85,216.81,22.53794085]
[1734525748795,30.0,216.85,216.79,22.53794085]
[1734525749327,30.0,216.85,216.8,22.53794085]
[1734525750325,30.0,216.82,216.75,22.53794085]
[1734525750718,30.0,216.82,216.77,22.53794085]
[1734525750926,30.0,216.82,216.78,22.53794085]
[1734525751100,30.0,216.86,216.8,22.53794085]
[1734525753022,30.0,216.86,216.82,22.53794085]
[1734525753211,30.0,216.89,216.83,22.53794085]
[1734525753925,30.0,216.92,216.86,22.53794085]
[1734525754106,30.0,216.92,216.87,22.53794085]
[1734525754627,30.0,216.92,216.86,22.53794085]
[1734525755823,52.53794085,216.92,216.85,24.08014085]
[1734525756041,52.53794085,216.92,216.84,22.53794085]
[1734525756217,30.0,216.89,216.84,22.53794085]
[1734525757726,22.53794085,216.91,216.84,22.53794085]
[1734525758027,22.53794085,216.92,216.84,22.53794085]
[1734525759918,22.03794085,216.92,216.84,22.53794085]
[1734525760237,52.53794085,216.93,216.86,22.53794085]
[1734525762239,52.53794085,216.93,216.85,22.53794085]
[1734525763131,27.77,216.92,216.85,22.53794085]
[1734525763439,52.53794085,216.93,216.85,22.53794085]
[1734525763953,30.0,216.93,216.87,22.53794085]
[1734525764542,30.0,216.93,216.86,22.53794085]
[1734525766120,57.77,216.96,216.89,22.53794085]
[1734525766325,22.53794085,216.97,216.9,22.53794085]
[1734525766733,86.9912813,216.98,216.91,22.53794085]
[1734525767128,22.53794085,216.97,216.9,22.53794085]
[1734525767736,86.9912813,216.98,216.91,22.53794085]
[1734525768033,0.5683594,216.98,216.92,22.53794085]
[1734525768244,0.5683594,216.98,216.94,22.53794085]
[1734525768910,0.5683594,216.98,216.95,22.53794085]
[1734525769312,0.5683594,216.98,216.96,22.53794085]
[1734525770239,0.5683594,216.98,216.97,22.53794085]
[1734525773918,0.5683594,216.98,216.97,46.44031485]
[1734525774114,0.5683594,216.98,216.97,48.77071485]
[1734525774311,0.5683594,216.98,216.97,49.4617775]
[1734525775679,10.0,217.01,217.0,20.12549]
[1734525775940,10.0,217.01,217.0,66.44031485]
[1734525776249,10.0,217.01,217.0,67.24031485]
[1734525777842,10.0,217.03,217.01,23.902374]
[1734525778015,10.0,217.03,217.02,68.9782557]
[1734525778216,10.0,217.03,217.02,69.7782557]
[1734525779354,10.0,217.03,217.02,47.24031485]
[1734525780070,10.0,217.03,217.02,69.7782557]
[1734525780255,10.0,217.03,217.02,52.70897182]
[1734525780646,10.0,217.03,217.02,14.80329891]
[1734525781073,10.0,217.03,217.02,14.92878891]
[1734525781772,10.0,217.03,217.02,14.00329891]
[1734525782352,10.0,217.03,217.02,14.12878891]
[1734525782659,10.0,217.03,217.02,28.13208782]
[1734525783191,10.0,217.03,217.02,51.90897182]
[1734525784448,10.0,217.03,217.02,52.70897182]
[1734525785348,10.0,217.03,217.02,38.70567291]
[1734525786785,10.0,217.03,217.02,14.80329891]
[1734525787544,10.0,217.03,217.02,14.92878891]
[1734525787985,10.0,217.03,217.02,28.93208782]
[1734525788286,10.0,217.03,217.02,52.70897182]
[1734525788489,10.0,217.03,217.02,51.90897182]
[1734525788647,44.00329891,217.15,217.02,51.90897182]
[1734525788847,14.00329891,217.13,217.06,14.00329891]
[1734525789078,3.3009594,217.2,216.98,6.0192]
[1734525789079,14.00329891,217.11,216.98,6.0192]
[1734525789374,14.00329891,217.07,217.0,14.00329891]
[1734525789977,1.6529,217.11,216.97,14.00329891]
[1734525789978,14.00329891,217.05,216.97,14.00329891]
[1734525790187,14.00329891,217.04,216.97,14.00329891]
[1734525790593,14.00329891,217.03,216.96,14.00329891]
[1734525791275,14.00329891,217.02,216.95,14.00329891]
[1734525791595,14.00329891,216.99,216.92,14.00329891]
[1734525791885,14.00329891,217.0,216.93,14.00329891]
[1734525792048,14.00329891,217.01,216.94,14.00329891]
[1734525793089,14.00329891,216.99,216.92,14.00329891]
[1734525793248,30.0,217.03,216.9,20.12549]
[1734525793249,14.00329891,216.98,216.9,14.00329891]
[1734525793447,14.00329891,216.98,216.91,14.00329891]
[1734525794260,14.00329891,217.01,216.94,14.00329891]
[1734525794791,14.00329891,217.02,216.95,14.00329891]
[1734525795178,14.00329891,217.01,216.94,14.00329891]
[1734525795494,14.00329891,216.99,216.91,14.00329891]
[1734525796647,14.00329891,216.99,216.89,14.00329891]
[1734525796648,14.00329891,216.97,216.89,14.00329891]
[1734525796955,14.00329891,216.95,216.88,14.00329891]
[1734525797464,14.00329891,216.96,216.88,14.00329891]
[1734525798304,14.00329891,216.95,216.87,20.42679891]
[1734525798598,14.00329891,216.92,216.84,14.00329891]
[1734525798961,20.0,216.97,216.91,14.00329891]
[1734525799276,14.00329891,216.99,216.91,14.00329891]
[1734525799490,14.00329891,216.98,216.91,14.00329891]
[1734525799688,14.00329891,216.99,216.91,14.00329891]
[1734525800394,14.00329891,216.99,216.88,23.776884]
[1734525800599,14.00329891,217.0,216.93,14.00329891]
[1734525800804,14.00329891,216.99,216.92,14.00329891]
[1734525802002,14.00329891,216.97,216.91,14.00329891]
[1734525802177,14.00329891,216.95,216.88,14.00329891]
[1734525802382,14.00329891,216.97,216.89,14.00329891]
[1734525802580,14.00329891,216.97,216.9,14.00329891]
[1734525803058,14.00329891,216.97,216.89,14.00329891]
[1734525803801,14.00329891,216.97,216.9,14.00329891]
[1734525804613,14.00329891,216.99,216.91,14.00329891]
[1734525804820,14.00329891,216.98,216.91,14.00329891]
[1734525805686,14.00329891,216.98,216.89,14.00329891]
[1734525806606,14.00329891,216.96,216.89,14.00329891]
[1734525807015,14.00329891,216.98,216.89,14.00329891]
[1734525807372,20.0,217.0,216.94,14.00329891]
[1734525807580,20.0,216.99,216.94,14.00329891]
[1734525807807,1.6565,217.06,216.91,23.776884]
[1734525808005,14.00329891,217.01,216.93,14.00329891]
[1734525808304,14.00329891,216.94,216.86,14.00329891]
[1734525811811,44.00329891,216.94,216.86,14.00329891]
[1734525812014,44.00329891,216.94,216.78,6.5342]
[1734525812015,14.00329891,216.89,216.78,6.5342]
[1734525812183,14.00329891,216.85,216.78,20.53749891]
[1734525812392,14.00329891,216.84,216.73,6.5342]
[1734525812574,14.00329891,216.84,216.77,14.00329891]
[1734525812797,14.00329891,216.83,216.76,14.00329891]
[1734525813299,14.00329891,216.8,216.73,20.53749891]
[1734525813508,14.00329891,216.79,216.72,14.00329891]
[1734525813713,14.00329891,216.8,216.72,14.00329891]
[1734525814378,14.00329891,216.78,216.69,6.3288]
[1734525814578,14.00329891,216.78,216.7,14.00329891]
[1734525814896,14.00329891,216.79,216.71,14.00329891]
[1734525815098,14.00329891,216.78,216.71,14.00329891]
[1734525815487,14.00329891,216.77,216.7,14.00329891]
[1734525816119,14.00329891,216.77,216.69,6.3288]
[1734525816120,14.00329891,216.76,216.69,6.3288]
[1734525816329,14.00329891,216.73,216.65,14.00329891]
[1734525816496,14.00329891,216.77,216.7,14.00329891]
[1734525816696,14.00329891,216.76,216.68,14.00329891]
[1734525817414,14.00329891,216.77,216.7,14.00329891]
[1734525817934,14.00329891,216.78,216.7,14.00329891]
[1734525818135,14.00329891,216.81,216.73,14.00329891]
[1734525818344,14.00329891,216.8,216.73,14.00329891]
[1734525818511,14.00329891,216.8,216.72,14.00329891]
[1734525818713,14.00329891,216.79,216.71,14.00329891]
[1734525819440,14.00329891,216.78,216.71,14.00329891]
[1734525820557,44.00329891,216.76,216.67,0.8]
[1734525820851,14.00329891,216.73,216.65,14.00329891]
[1734525821954,14.00329891,216.74,216.66,14.00329891]
[1734525822115,14.00329891,216.73,216.66,14.00329891]
[1734525822745,14.00329891,216.74,216.66,14.00329891]
[1734525822948,14.00329891,216.75,216.67,14.00329891]
[1734525823453,14.00329891,216.74,216.66,14.00329891]
[1734525823627,14.00329891,216.73,216.65,14.00329891]
[1734525824011,14.00329891,216.71,216.63,14.80329891]
[1734525824219,14.00329891,216.7,216.62,20.15159891]
[1734525825563,14.00329891,216.67,216.6,16.42569891]
[1734525825857,14.00329891,216.64,216.57,20.19289891]
[1734525826167,14.00329891,216.64,216.57,6.1896]
[1734525828524,14.00329891,216.67,216.59,14.00329891]
[1734525828841,14.00329891,216.68,216.6,14.00329891]
[1734525829064,14.00329891,216.67,216.59,14.00329891]
[1734525829562,14.00329891,216.68,216.61,14.00329891]
[1734525829726,14.00329891,216.7,216.63,14.00329891]
[1734525830065,14.00329891,216.7,216.62,14.00329891]
[1734525830567,14.00329891,216.7,216.63,14.00329891]
[1734525831044,30.0,216.77,216.68,14.00329891]
[1734525831246,14.00329891,216.76,216.68,14.00329891]
[1734525831836,14.00329891,216.74,216.67,14.00329891]
[1734525832437,14.00329891,216.75,216.67,14.00329891]
[1734525832957,14.00329891,216.74,216.67,14.00329891]
[1734525833141,14.00329891,216.75,216.68,14.00329891]
[1734525833856,14.00329891,216.74,216.67,14.00329891]
[1734525834341,14.00329891,216.75,216.68,14.00329891]
[1734525834927,44.00329891,216.77,216.69,14.00329891]
[1734525836940,14.00329891,216.79,216.72,14.00329891]
[1734525837352,44.00329891,216.81,216.73,14.00329891]
[1734525837564,44.00329891,216.81,216.68,6.219]
[1734525837565,14.00329891,216.74,216.68,6.219]
[1734525837866,14.00329891,216.76,216.68,20.22229891]
[1734525838567,14.00329891,216.74,216.68,6.219]
[1734525841080,57.77,216.79,216.7,14.00329891]
[1734525841385,57.77,216.79,216.68,6.219]
[1734525841386,14.00329891,216.79,216.71,14.00329891]
[1734525841687,14.00329891,216.79,216.72,14.00329891]
[1734525842749,14.00329891,216.8,216.72,14.00329891]
[1734525842955,14.00329891,216.82,216.74,14.00329891]
[1734525843480,30.0,216.85,216.75,14.00329891]
[1734525843481,14.00329891,216.83,216.75,14.00329891]
[1734525843691,44.00329891,216.85,216.77,14.00329891]
[1734525844047,14.00329891,216.84,216.77,14.00329891]
[1734525844247,14.00329891,216.84,216.76,14.00329891]
[1734525844479,14.00329891,216.82,216.74,14.00329891]
[1734525844782,14.00329891,216.78,216.71,14.00329891]
[1734525845466,14.00329891,216.78,216.7,14.00329891]
[1734525845654,14.00329891,216.81,216.73,14.00329891]
[1734525845854,14.00329891,216.82,216.75,14.00329891]
[1734525846360,30.0,216.9,216.81,14.00329891]
[1734525846558,14.00329891,216.91,216.83,14.00329891]
[1734525847294,14.00329891,216.9,216.82,14.00329891]
[1734525849798,14.00329891,216.9,216.83,14.00329891]
[1734525849998,14.00329891,216.92,216.85,14.00329891]
[1734525850161,14.00329891,216.93,216.85,14.00329891]
[1734525850362,14.00329891,216.95,216.88,14.00329891]
[1734525850991,30.0,216.99,216.89,14.00329891]
[1734525851261,14.00329891,216.97,216.9,14.00329891]
[1734525851975,14.00329891,216.98,216.91,14.00329891]
[1734525855287,14.00329891,216.99,216.92,14.00329891]
[1734525855508,14.00329891,217.0,216.93,14.00329891]
[1734525855995,14.00329891,217.01,216.94,14.00329891]
[1734525856872,14.00329891,217.02,216.95,14.00329891]
[1734525857416,30.0,217.05,216.94,14.00329891]
[1734525857417,14.00329891,217.01,216.94,14.00329891]
[1734525857568,14.00329891,217.01,216.9,0.8168436]
[1734525857887,30.0,217.05,216.91,14.00329891]
[1734525857888,14.00329891,216.98,216.91,14.00329891]
[1734525858484,14.00329891,216.99,216.92,14.00329891]
[1734525859414,1.6575,217.06,216.89,7.2224]
[1734525859415,14.00329891,216.98,216.91,14.00329891]
[1734525859581,14.00329891,216.96,216.89,20.42569891]
[1734525859903,30.0,217.02,216.9,14.00329891]
[1734525859904,14.00329891,216.97,216.9,14.00329891]
[1734525860292,14.00329891,216.98,216.91,14.00329891]
[1734525861402,30.0,216.81,216.68,1.87471818]
[1734525861582,14.00329891,216.75,216.67,14.00329891]
[1734525861903,14.00329891,216.73,216.65,14.80329891]
[1734525862103,14.00329891,216.69,216.63,7.2675]
[1734525862420,14.00329891,216.65,216.59,2.70340535]
[1734525862589,14.00329891,216.65,216.57,21.44359891]
[1734525862779,14.00329891,216.61,216.53,15.65619891]
[1734525862982,14.00329891,216.59,216.51,14.00329891]
[1734525863186,14.00329891,216.57,216.5,6.6403]
[1734525863796,14.00329891,216.59,216.51,14.92878891]
[1734525863995,22.5161849,216.61,216.53,22.5161849]
[1734525864877,22.5161849,216.67,216.59,22.5161849]
[1734525865076,22.5161849,216.66,216.58,22.5161849]
[1734525866018,22.5161849,216.66,216.59,22.5161849]
[1734525866998,22.5161849,216.67,216.59,22.5161849]
[1734525867683,22.5161849,216.65,216.58,22.5161849]
[1734525868124,22.5161849,216.66,216.59,22.5161849]
[1734525868498,22.5161849,216.67,216.59,22.5161849]
[1734525868811,22.5161849,216.68,216.61,22.5161849]
[1734525869019,22.5161849,216.7,216.63,22.5161849]
[1734525871716,22.5161849,216.71,216.64,22.5161849]
[1734525874027,22.5161849,216.71,216.59,25.66077049]
[1734525874028,22.5161849,216.75,216.68,22.5161849]
[1734525874219,22.5161849,216.75,216.69,22.5161849]
[1734525875102,22.5161849,216.76,216.69,22.5161849]
[1734525875420,22.5161849,216.77,216.71,22.5161849]
[1734525875929,22.5161849,216.78,216.71,22.5161849]
[1734525879315,30.0,216.85,216.73,22.5161849]
[1734525879514,22.5161849,216.83,216.76,22.5161849]
[1734525879813,22.5161849,216.82,216.76,22.5161849]
[1734525880620,22.5161849,216.83,216.76,22.5161849]
[1734525881193,22.5161849,216.84,216.78,22.5161849]
[1734525882017,22.5161849,216.85,216.78,22.5161849]
[1734525883820,22.5161849,216.86,216.79,22.5161849]
[1734525884511,22.5161849,216.87,216.8,22.5161849]
[1734525884933,22.5161849,216.88,216.81,22.5161849]
[1734525885520,22.5161849,216.89,216.82,22.5161849]
[1734525885721,22.5161849,216.88,216.81,22.5161849]
[1734525886124,14.0368204,216.88,216.81,14.0368204]
[1734525888659,30.0,216.89,216.79,14.0368204]
[1734525888858,30.0,216.89,216.77,14.8368204]
[1734525888859,14.0368204,216.84,216.77,14.8368204]